[Event "6e festival d'échecs d'Allauch"]
[Site "Allauch, France"]
[Date "2024.08.29"]
[Round "6.4"]
[White "Durand-Benmoussa, Roman"]
[Black "Madi, Mohammed"]
[Result "1-0"]
[TimeControl "1 h 30 min (+30s/coup)"]
[WhiteElo "2109"]
[BlackElo "1922"]

1. d4 {[%clk 01:30:25]} {[%emt 00:00:35]} Nf6 {[%clk 01:30:43]} {[%emt
00:00:17]} 2. c4 {[%clk 01:30:50]} {[%emt 00:00:05]} g6 {[%clk 01:31:08]}
{[%emt 00:00:05]} 3. Nc3 {[%clk 01:31:16]} {[%emt 00:00:03]} Bg7 {[%clk
01:31:34]} {[%emt 00:00:05]} 4. e4 {[%clk 01:31:42]} {[%emt 00:00:04]} d6
{[%clk 01:31:59]} {[%emt 00:00:04]} 5. Nge2 {[%clk 01:32:09]} {[%emt 00:00:03]}
O-O {[%clk 01:31:23]} {[%emt 00:01:07]} 6. Ng3 {[%clk 01:32:36]} {[%emt
00:00:05]} e5 {[%clk 01:30:32]} {[%emt 00:01:19]} 7. d5 {[%clk 01:33:00]}
{[%emt 00:00:06]} Nbd7 {[%clk 01:30:23]} {[%emt 00:00:39]} 8. Be2 {[%clk
01:33:04]} {[%emt 00:00:26]} a5 {[%clk 01:28:56]} {[%emt 00:01:58]} 9. h4
{[%clk 01:33:28]} {[%emt 00:00:06]} h5 {[%clk 01:26:30]} {[%emt 00:02:56]} 10.
Bg5 {[%clk 01:33:41]} {[%emt 00:00:17]} Re8 {[%clk 01:17:45]} {[%emt 00:09:15]}
11. Qd2 {[%clk 01:20:00]} {[%emt 00:14:10]} Nf8 {[%clk 01:15:02]} {[%emt
00:03:13]} 12. f3 {[%clk 01:17:19]} {[%emt 00:03:11]} N8h7 {[%clk 01:11:51]}
{[%emt 00:03:41]} 13. Be3 {[%clk 01:15:35]} {[%emt 00:02:13]} Qe7 {[%clk
01:10:01]} {[%emt 00:02:20]} 14. O-O-O {[%clk 01:14:51]} {[%emt 00:01:14]} Rd8
{[%clk 01:09:22]} {[%emt 00:01:10]} 15. Kb1 {[%clk 01:12:13]} {[%emt 00:03:08]}
Nd7 {[%clk 01:00:20]} {[%emt 00:09:32]} 16. Na4 {[%clk 01:02:06]} {[%emt
00:10:37]} Rf8 {[%clk 00:56:29]} {[%emt 00:04:21]} 17. Rdg1 {[%clk 01:00:13]}
{[%emt 00:02:24]} Qe8 {[%clk 00:52:49]} {[%emt 00:04:09]} 18. Bd3 {[%clk
00:54:08]} {[%emt 00:06:35]} Nb8 {[%clk 00:50:37]} {[%emt 00:02:42]} 19. Qc2
{[%clk 00:50:55]} {[%emt 00:03:43]} Na6 {[%clk 00:46:17]} {[%emt 00:04:49]} 20.
Qd1 {[%clk 00:47:06]} {[%emt 00:04:19]} f5 {[%clk 00:34:27]} {[%emt 00:12:20]}
21. exf5 {[%clk 00:44:51]} {[%emt 00:02:45]} gxf5 {[%clk 00:34:20]} {[%emt
00:00:38]} 22. f4 {[%clk 00:44:23]} {[%emt 00:00:58]} Nf6 {[%clk 00:30:30]}
{[%emt 00:04:20]} 23. Re1 {[%clk 00:41:14]} {[%emt 00:03:40]} Ng4 {[%clk
00:29:31]} {[%emt 00:01:29]} 24. Rhf1 {[%clk 00:41:20]} {[%emt 00:00:23]} e4
{[%clk 00:28:01]} {[%emt 00:02:00]} 25. Bc2 {[%clk 00:40:31]} {[%emt 00:01:20]}
Nb4 {[%clk 00:26:33]} {[%emt 00:01:57]} 26. Nc3 {[%clk 00:37:33]} {[%emt
00:03:28]} Bd7 {[%clk 00:24:06]} {[%emt 00:02:57]} 27. Bg1 {[%clk 00:31:00]}
{[%emt 00:07:04]} b5 {[%clk 00:17:30]} {[%emt 00:07:05]} 28. Nxb5 {[%clk
00:23:22]} {[%emt 00:08:09]} Bxb5 {[%clk 00:15:21]} {[%emt 00:02:38]} 29. cxb5
{[%clk 00:23:51]} {[%emt 00:00:01]} Nxc2 {[%clk 00:15:30]} {[%emt 00:00:22]} 30.
Qxc2 {[%clk 00:24:06]} {[%emt 00:00:15]} Qxb5 {[%clk 00:13:26]} {[%emt
00:02:34]} 31. Nxh5 {[%clk 00:18:18]} {[%emt 00:06:19]} Bh8 {[%clk 00:13:43]}
{[%emt 00:00:13]} 32. Re2 {[%clk 00:16:16]} {[%emt 00:02:32]} Qxd5 {[%clk
00:09:58]} {[%emt 00:04:15]} 33. Rc1 {[%clk 00:13:12]} {[%emt 00:03:33]} Rab8
{[%clk 00:06:58]} {[%emt 00:03:30]} 34. Ng3 {[%clk 00:09:06]} {[%emt 00:04:37]}
Bxb2 {[%clk 00:06:06]} {[%emt 00:01:22]} 35. Rd1 {[%clk 00:03:31]} {[%emt
00:06:04]} Be5+ {[%clk 00:05:19]} {[%emt 00:01:17]} 36. Kc1 {[%clk 00:03:57]}
{[%emt 00:00:04]} Bxf4+ {[%clk 00:05:28]} {[%emt 00:00:21]} 37. Be3 {[%emt
00:01:48]} Bxe3+ {[%clk 00:04:39]} {[%emt 00:01:17]} 38. Rxe3 {[%clk 00:03:02]}
{[%emt 00:00:09]} Nxe3 {[%clk 00:04:11]} {[%emt 00:00:58]} 39. Rxd5 {[%clk
00:03:24]} {[%emt 00:00:08]} Nxc2 {[%clk 00:04:36]} {[%emt 00:00:05]} 40. Kxc2
{[%clk 00:03:51]} {[%emt 00:00:03]} Rbe8 {[%clk 00:03:56]} {[%emt 00:01:10]} 41.
Nxf5 {[%clk 00:03:29]} {[%emt 00:00:53]} e3 {[%clk 00:02:44]} {[%emt 00:01:42]}
42. Kd1 {[%clk 00:03:48]} {[%emt 00:00:11]} e2+ {[%clk 00:02:48]} {[%emt
00:00:26]} 43. Ke1 {[%clk 00:04:17]} {[%emt 00:00:01]} c6 {[%clk 00:02:48]}
{[%emt 00:00:30]} 44. Rxa5 {[%clk 00:04:17]} {[%emt 00:00:29]} d5 {[%clk
00:03:01]} {[%emt 00:00:16]} 45. g4 {[%clk 00:03:33]} {[%emt 00:01:15]} d4
{[%clk 00:02:46]} {[%emt 00:00:45]} 46. Ra7 {[%clk 00:01:15]} {[%emt 00:02:48]}
d3 {[%clk 00:01:21]} {[%emt 00:01:55]} 47. Rd7 {[%clk 00:01:45]} Rd8 {[%clk
00:01:12]} {[%emt 00:00:39]} 48. Nh6+ {[%clk 00:02:08]} {[%emt 00:00:07]} Kh8
{[%clk 00:00:37]} {[%emt 00:01:05]} 49. Rxd8 {[%clk 00:00:39]} {[%emt
00:01:58]} Rxd8 {[%clk 00:00:32]} {[%emt 00:00:35]} 50. Nf7+ {[%clk 00:01:08]}
{[%emt 00:00:01]} Kg8 {[%clk 00:00:47]} {[%emt 00:00:15]} 51. Nxd8 {[%clk
00:01:37]} {[%emt 00:00:01]} c5 {[%clk 00:01:16]} {[%emt 00:00:01]} 52. Ne6
{[%clk 00:01:51]} {[%emt 00:00:16]} c4 {[%clk 00:01:21]} {[%emt 00:00:25]} 53.
Nf4 {[%clk 00:02:14]} {[%emt 00:00:07]} Kf7 {[%clk 00:01:29]} {[%emt 00:00:22]}
54. Nxe2 {[%clk 00:02:36]} {[%emt 00:00:08]} 1-0

[Event "6e festival d'échecs d'Allauch"]
[Site "Allauch, France"]
[Date "2024.08.29"]
[Round "6.5"]
[White "Madi, Chahinez"]
[Black "Sembel Rudelle, Gael"]
[Result "1/2-1/2"]
[TimeControl "1 h 30 min (+30s/coup)"]
[WhiteElo "1668"]
[BlackElo "1624"]

1. e4 {[%clk 01:30:57]} {[%emt 00:00:02]} c5 {[%clk 01:30:57]} {[%emt
00:00:04]} 2. Nf3 {[%clk 01:31:23]} {[%emt 00:00:04]} Nc6 {[%clk 01:31:20]}
{[%emt 00:00:06]} 3. d4 {[%clk 01:31:47]} {[%emt 00:00:06]} cxd4 {[%clk
01:31:47]} {[%emt 00:00:04]} 4. Nxd4 {[%clk 01:32:05]} {[%emt 00:00:11]} g6
{[%clk 01:32:13]} {[%emt 00:00:04]} 5. Nc3 {[%clk 01:32:15]} {[%emt 00:00:20]}
Bg7 {[%clk 01:32:40]} {[%emt 00:00:03]} 6. Be3 {[%clk 01:32:13]} {[%emt
00:00:33]} Nf6 {[%clk 01:33:04]} {[%emt 00:00:06]} 7. Be2 {[%clk 01:30:04]}
{[%emt 00:02:38]} O-O {[%clk 01:32:45]} {[%emt 00:00:49]} 8. O-O {[%clk
01:30:09]} {[%emt 00:00:24]} d5 {[%clk 01:32:31]} {[%emt 00:00:45]} 9. exd5
{[%clk 01:23:57]} {[%emt 00:06:42]} Nxd5 {[%clk 01:32:55]} {[%emt 00:00:05]} 10.
Nxd5 {[%clk 01:24:00]} {[%emt 00:00:28]} Nxd4 {[%clk 01:30:30]} {[%emt
00:02:56]} 11. Bxd4 {[%clk 01:19:24]} {[%emt 00:05:06]} Qxd5 {[%clk 01:30:54]}
{[%emt 00:00:06]} 12. Bxg7 {[%clk 01:18:02]} {[%emt 00:01:51]} Qxd1 {[%clk
01:31:19]} {[%emt 00:00:05]} 13. Rfxd1 {[%clk 01:17:07]} {[%emt 00:01:25]} Kxg7
{[%clk 01:31:36]} {[%emt 00:00:13]} 14. Bb5 {[%clk 01:15:10]} {[%emt 00:02:26]}
Bf5 {[%clk 01:30:07]} {[%emt 00:01:59]} 15. c3 {[%clk 01:15:07]} {[%emt
00:00:34]} Rfd8 {[%clk 01:30:15]} {[%emt 00:00:22]} 16. Ba4 {[%clk 01:08:12]}
{[%emt 00:07:25]} e5 {[%clk 01:23:19]} {[%emt 00:07:27]} 17. Rxd8 {[%clk
01:05:05]} {[%emt 00:03:36]} Rxd8 {[%clk 01:23:42]} {[%emt 00:00:07]} 18. Rd1
{[%clk 01:05:30]} {[%emt 00:00:05]} Rxd1+ {[%clk 01:23:50]} {[%emt 00:00:22]}
19. Bxd1 {[%clk 01:05:54]} {[%emt 00:00:07]} Bd3 {[%clk 01:21:54]} {[%emt
00:02:26]} 20. f3 {[%clk 01:04:55]} {[%emt 00:01:29]} f5 {[%clk 01:20:21]}
{[%emt 00:02:04]} 21. Kf2 {[%clk 01:04:13]} {[%emt 00:01:12]} Kf6 {[%clk
01:20:26]} {[%emt 00:00:25]} 22. a4 {[%clk 01:03:15]} {[%emt 00:01:28]} Ke6
{[%clk 01:15:18]} {[%emt 00:05:39]} 23. b4 {[%clk 00:54:45]} {[%emt 00:09:00]}
Kd5 {[%clk 01:14:10]} {[%emt 00:01:38]} 24. Ke3 {[%clk 00:49:29]} {[%emt
00:05:43]} Kc4 {[%clk 01:13:20]} {[%emt 00:01:23]} 25. Kd2 {[%clk 00:49:41]}
{[%emt 00:00:18]} g5 {[%clk 01:10:23]} {[%emt 00:03:28]} 26. a5 {[%clk
00:41:24]} {[%emt 00:08:47]} b6 {[%clk 01:08:01]} {[%emt 00:02:52]} 27. axb6
{[%clk 00:39:47]} {[%emt 00:02:06]} axb6 {[%clk 01:08:29]} {[%emt 00:00:02]} 28.
Ba4 {[%clk 00:39:57]} {[%emt 00:00:21]} Bf1 {[%clk 01:08:02]} {[%emt 00:00:57]}
29. Bd7 {[%clk 00:39:35]} {[%emt 00:00:51]} Kb3 {[%clk 01:01:12]} {[%emt
00:07:20]} 30. Bxf5 {[%clk 00:38:44]} {[%emt 00:01:21]} Bxg2 {[%clk 01:01:32]}
{[%emt 00:00:10]} 31. Bxh7 {[%clk 00:38:29]} {[%emt 00:00:45]} Bxf3 {[%clk
01:01:43]} {[%emt 00:00:20]} 32. Bc2+ {[%clk 00:33:47]} {[%emt 00:05:11]} Kb2
{[%clk 01:00:42]} {[%emt 00:01:32]} 33. c4 {[%clk 00:33:42]} {[%emt 00:00:36]}
Ka3 {[%clk 00:58:04]} {[%emt 00:03:08]} 34. Ke3 {[%clk 00:30:08]} {[%emt
00:04:02]} g4 {[%clk 00:58:02]} {[%emt 00:00:33]} 35. c5 {[%clk 00:28:26]}
{[%emt 00:02:13]} bxc5 {[%clk 00:55:32]} {[%emt 00:03:00]} 36. bxc5 {[%clk
00:28:36]} {[%emt 00:00:20]} Kb4 {[%clk 00:55:56]} {[%emt 00:00:06]} 37. Be4
{[%clk 00:28:56]} {[%emt 00:00:09]} Kxc5 {[%clk 00:55:27]} {[%emt 00:00:59]} 38.
Bxf3 {[%clk 00:28:18]} {[%emt 00:01:08]} Kd6 {[%clk 00:55:39]} {[%emt
00:00:19]} 39. Bxg4 {[%clk 00:28:29]} {[%emt 00:00:19]} Ke7 {[%clk 00:55:53]}
{[%emt 00:00:16]} 40. h4 {[%clk 00:28:21]} {[%emt 00:00:37]} Kf6 {[%clk
00:56:18]} {[%emt 00:00:06]} 41. h5 {[%clk 00:28:01]} {[%emt 00:00:50]} Kg7
{[%clk 00:56:36]} {[%emt 00:00:11]} 42. Ke4 {[%clk 00:28:12]} {[%emt 00:00:21]}
Kh8 {[%clk 00:56:39]} {[%emt 00:00:27]} 43. Kxe5 {[%clk 00:28:12]} {[%emt
00:00:30]} Kh7 {[%clk 00:57:03]} {[%emt 00:00:07]} 44. Bf5+ {[%clk 00:26:49]}
{[%emt 00:01:52]} Kh8 {[%clk 00:57:27]} {[%emt 00:00:06]} 45. Kf6 {[%clk
00:26:57]} {[%emt 00:00:22]} Kg8 {[%clk 00:57:53]} {[%emt 00:00:05]} 46. Kg6
{[%clk 00:26:46]} {[%emt 00:00:41]} Kh8 {[%clk 00:58:17]} {[%emt 00:00:07]} 47.
h6 {[%clk 00:27:06]} {[%emt 00:00:09]} Kg8 {[%clk 00:58:41]} {[%emt 00:00:05]}
48. h7+ {[%clk 00:25:03]} {[%emt 00:02:34]} Kh8 {[%clk 00:59:07]} {[%emt
00:00:04]} 49. Kh5 {[%clk 00:25:27]} {[%emt 00:00:05]} Kg7 {[%clk 00:59:33]}
{[%emt 00:00:05]} 1/2-1/2

[Event "6e festival d'échecs d'Allauch"]
[Site "Allauch, France"]
[Date "2024.08.29"]
[Round "6.6"]
[White "Anton, Christophe"]
[Black "Belaid, Noa"]
[Result "1-0"]
[TimeControl "1 h 30 min (+30s/coup)"]
[WhiteElo "1697"]
[BlackElo "1637"]

1. e4 {[%clk 01:30:57]} {[%emt 00:00:02]} e5 {[%clk 01:30:55]} {[%emt
00:00:05]} 2. Nf3 {[%clk 01:31:24]} {[%emt 00:00:04]} Nc6 {[%clk 01:31:03]}
{[%emt 00:00:22]} 3. d4 {[%clk 01:31:39]} {[%emt 00:00:15]} exd4 {[%clk
01:31:05]} {[%emt 00:00:29]} 4. Nxd4 {[%clk 01:32:04]} {[%emt 00:00:05]} Nf6
{[%clk 01:30:56]} {[%emt 00:00:39]} 5. Nc3 {[%clk 01:31:51]} {[%emt 00:00:43]}
Bb4 {[%clk 01:30:29]} {[%emt 00:00:56]} 6. Nxc6 {[%clk 01:32:11]} {[%emt
00:00:10]} bxc6 {[%clk 01:30:33]} {[%emt 00:00:28]} 7. Bd3 {[%clk 01:32:35]}
{[%emt 00:00:05]} d5 {[%clk 01:28:07]} {[%emt 00:02:55]} 8. exd5 {[%clk
01:32:03]} {[%emt 00:01:04]} cxd5 {[%clk 01:28:02]} {[%emt 00:00:35]} 9. O-O
{[%clk 01:31:34]} {[%emt 00:00:59]} O-O {[%clk 01:27:43]} {[%emt 00:00:49]} 10.
h3 {[%clk 01:27:49]} {[%emt 00:04:16]} c5 {[%clk 01:22:49]} {[%emt 00:05:21]}
11. Bg5 {[%clk 01:17:59]} {[%emt 00:10:22]} Bxc3 {[%clk 01:16:32]} {[%emt
00:06:46]} 12. bxc3 {[%clk 01:18:14]} {[%emt 00:00:17]} Qd6 {[%clk 01:11:46]}
{[%emt 00:05:13]} 13. Bxf6 {[%clk 01:14:06]} {[%emt 00:04:41]} gxf6 {[%clk
01:05:28]} {[%emt 00:06:47]} 14. Qh5 {[%clk 01:10:36]} {[%emt 00:04:00]} f5
{[%clk 01:04:56]} {[%emt 00:01:03]} 15. Bxf5 {[%clk 01:10:18]} {[%emt
00:00:48]} Bxf5 {[%clk 01:05:18]} {[%emt 00:00:08]} 16. Qxf5 {[%clk 01:10:45]}
{[%emt 00:00:04]} Qe6 {[%clk 01:01:10]} {[%emt 00:04:36]} 17. Qg5+ {[%clk
01:10:15]} {[%emt 00:01:00]} Kh8 {[%clk 01:00:19]} {[%emt 00:01:21]} 18. Rfe1
{[%clk 01:09:55]} {[%emt 00:00:49]} Qd6 {[%clk 00:53:03]} {[%emt 00:07:47]} 19.
Qe5+ {[%clk 01:09:27]} {[%emt 00:00:58]} Qxe5 {[%clk 00:53:10]} {[%emt
00:00:23]} 20. Rxe5 {[%clk 01:09:52]} {[%emt 00:00:05]} Rfd8 {[%clk 00:53:26]}
{[%emt 00:00:12]} 21. Rb1 {[%clk 00:59:57]} {[%emt 00:10:27]} d4 {[%clk
00:50:00]} {[%emt 00:03:56]} 22. Rxc5 {[%clk 00:59:52]} {[%emt 00:00:35]} dxc3
{[%clk 00:50:28]} {[%emt 00:00:02]} 23. Rxc3 {[%clk 01:00:08]} {[%emt
00:00:14]} Rd2 {[%clk 00:50:52]} {[%emt 00:00:04]} 24. Rb7 {[%clk 00:59:30]}
{[%emt 00:01:10]} 1-0

[Event "6e festival d'échecs d'Allauch"]
[Site "Allauch, France"]
[Date "2024.08.29"]
[Round "6.7"]
[White "Sembel Rudelle, Nina"]
[Black "Menager, Stephane"]
[Result "0-1"]
[TimeControl "1 h 30 min (+30s/coup)"]
[WhiteElo "1434"]
[BlackElo "1660"]

1. e4 {[%clk 01:30:56]} {[%emt 00:00:03]} e5 {[%clk 01:30:51]} {[%emt
00:00:10]} 2. Nf3 {[%clk 01:31:14]} {[%emt 00:00:11]} Nf6 {[%clk 01:31:19]}
{[%emt 00:00:03]} 3. Nc3 {[%clk 01:30:59]} {[%emt 00:00:45]} Nc6 {[%clk
01:31:17]} {[%emt 00:00:32]} 4. d4 {[%clk 01:30:19]} {[%emt 00:01:09]} exd4
{[%clk 01:30:33]} {[%emt 00:01:14]} 5. Nxd4 {[%clk 01:30:32]} {[%emt 00:00:17]}
Bb4 {[%clk 01:29:18]} {[%emt 00:01:46]} 6. Nxc6 {[%clk 01:29:21]} {[%emt
00:01:40]} bxc6 {[%clk 01:25:23]} {[%emt 00:04:26]} 7. Bd3 {[%clk 01:27:39]}
{[%emt 00:02:11]} O-O {[%clk 01:22:36]} {[%emt 00:03:17]} 8. O-O {[%clk
01:24:50]} {[%emt 00:03:18]} Bxc3 {[%clk 01:21:29]} {[%emt 00:01:39]} 9. bxc3
{[%clk 01:24:57]} {[%emt 00:00:21]} h6 {[%clk 01:17:17]} {[%emt 00:04:43]} 10.
Bf4 {[%clk 01:15:31]} {[%emt 00:09:55]} d6 {[%clk 01:15:58]} {[%emt 00:01:50]}
11. e5 {[%clk 01:12:33]} {[%emt 00:03:28]} Nd5 {[%clk 01:16:12]} {[%emt
00:00:17]} 12. Bg3 {[%clk 01:06:56]} {[%emt 00:06:04]} Nxc3 {[%clk 01:12:30]}
{[%emt 00:04:14]} 13. Qd2 {[%clk 01:05:34]} {[%emt 00:01:51]} Nd5 {[%clk
01:06:47]} {[%emt 00:06:15]} 14. Be4 {[%clk 00:58:22]} {[%emt 00:07:34]} dxe5
{[%clk 01:02:38]} {[%emt 00:04:47]} 15. Bxd5 {[%clk 00:56:03]} {[%emt
00:02:48]} Qxd5 {[%clk 00:57:05]} {[%emt 00:06:04]} 16. Qxd5 {[%clk 00:56:21]}
{[%emt 00:00:11]} cxd5 {[%clk 00:57:30]} {[%emt 00:00:06]} 17. Bxe5 {[%clk
00:56:29]} {[%emt 00:00:19]} c6 {[%clk 00:57:49]} {[%emt 00:00:12]} 18. Rfe1
{[%clk 00:55:58]} {[%emt 00:00:55]} Bf5 {[%clk 00:47:42]} {[%emt 00:10:43]} 19.
c3 {[%clk 00:54:59]} {[%emt 00:01:28]} Rfe8 {[%clk 00:42:01]} {[%emt 00:06:13]}
20. Bd4 {[%clk 00:53:34]} {[%emt 00:01:46]} a6 {[%clk 00:41:11]} {[%emt
00:01:28]} 21. g3 {[%clk 00:49:36]} {[%emt 00:04:25]} Rab8 {[%clk 00:39:13]}
{[%emt 00:02:30]} 22. Rab1 {[%clk 00:47:49]} {[%emt 00:02:17]} Rxb1 {[%clk
00:38:59]} {[%emt 00:00:44]} 23. Rxb1 {[%clk 00:46:01]} {[%emt 00:02:18]} Bxb1
{[%clk 00:39:21]} {[%emt 00:00:07]} 24. a3 {[%clk 00:46:22]} {[%emt 00:00:09]}
Re2 {[%clk 00:39:29]} {[%emt 00:00:22]} 25. Kf1 {[%clk 00:45:41]} {[%emt
00:01:10]} Bd3 {[%clk 00:39:03]} {[%emt 00:00:59]} 26. Kg2 {[%clk 00:44:51]}
{[%emt 00:01:18]} Bc4 {[%clk 00:37:01]} {[%emt 00:02:33]} 27. Kf3 {[%clk
00:44:07]} {[%emt 00:01:14]} Rb2 {[%clk 00:36:41]} {[%emt 00:00:50]} 28. Be5
{[%clk 00:43:44]} {[%emt 00:00:49]} Rb3 {[%clk 00:36:40]} {[%emt 00:00:35]} 29.
Ke3 {[%clk 00:43:26]} {[%emt 00:00:47]} Rxa3 {[%clk 00:36:49]} {[%emt
00:00:22]} 30. Kd4 {[%clk 00:43:39]} {[%emt 00:00:13]} Ra2 {[%clk 00:36:56]}
{[%emt 00:00:28]} 31. f4 {[%clk 00:43:35]} {[%emt 00:00:33]} Rxh2 {[%clk
00:37:05]} {[%emt 00:00:21]} 32. Kc5 {[%clk 00:43:55]} {[%emt 00:00:08]} Bb5
{[%clk 00:37:01]} {[%emt 00:00:36]} 33. Bd4 {[%clk 00:43:29]} {[%emt 00:00:53]}
a5 {[%clk 00:36:51]} {[%emt 00:00:44]} 34. Kb6 {[%clk 00:41:09]} {[%emt
00:02:49]} a4 {[%clk 00:37:07]} {[%emt 00:00:15]} 35. Bc5 {[%clk 00:41:25]}
{[%emt 00:00:13]} Rc2 {[%clk 00:37:22]} {[%emt 00:00:16]} 36. Bb4 {[%clk
00:41:37]} {[%emt 00:00:17]} a3 {[%clk 00:37:30]} {[%emt 00:00:24]} 37. Bxa3
{[%clk 00:41:53]} {[%emt 00:00:13]} Rxc3 {[%clk 00:37:53]} {[%emt 00:00:07]} 38.
Bb4 {[%clk 00:41:54]} {[%emt 00:00:28]} Rxg3 {[%clk 00:38:12]} {[%emt
00:00:12]} 39. Kc5 {[%clk 00:41:34]} {[%emt 00:00:48]} h5 {[%clk 00:37:46]}
{[%emt 00:00:58]} 40. Be1 {[%clk 00:41:46]} {[%emt 00:00:17]} h4 {[%clk
00:38:14]} {[%emt 00:00:03]} 41. Bxg3 {[%clk 00:41:39]} {[%emt 00:00:35]} hxg3
{[%clk 00:38:39]} {[%emt 00:00:06]} 42. Kb6 {[%clk 00:41:42]} {[%emt 00:00:26]}
g2 {[%clk 00:39:02]} {[%emt 00:00:10]} 43. Kb7 {[%clk 00:41:50]} {[%emt
00:00:20]} g1=Q {[%clk 00:39:17]} {[%emt 00:00:15]} 44. f5 {[%clk 00:42:10]}
{[%emt 00:00:12]} Qa1 {[%clk 00:38:47]} {[%emt 00:01:01]} 45. Kc7 {[%clk
00:42:26]} {[%emt 00:00:11]} c5 {[%clk 00:36:02]} {[%emt 00:03:17]} 46. Kd6
{[%clk 00:41:51]} {[%emt 00:01:04]} d4 {[%clk 00:35:47]} {[%emt 00:00:46]} 47.
Kxc5 {[%clk 00:42:04]} {[%emt 00:00:15]} d3 {[%clk 00:36:05]} {[%emt 00:00:14]}
48. Kxb5 {[%clk 00:42:25]} {[%emt 00:00:08]} Qc1 {[%clk 00:36:28]} {[%emt
00:00:06]} 49. Kb6 {[%clk 00:42:39]} {[%emt 00:00:16]} d2 {[%clk 00:36:37]}
{[%emt 00:00:22]} 50. Ka5 {[%clk 00:42:51]} {[%emt 00:00:18]} Qb2 {[%clk
00:36:51]} {[%emt 00:00:17]} 51. Ka6 {[%clk 00:42:47]} {[%emt 00:00:32]} d1=Q
{[%clk 00:36:56]} {[%emt 00:00:17]} 52. Ka5 {[%clk 00:43:15]} {[%emt 00:00:12]}
Qda1# {[%clk 00:37:16]} {[%emt 00:00:08]} 0-1

[Event "6e festival d'échecs d'Allauch"]
[Site "Allauch, France"]
[Date "2024.08.29"]
[Round "6.8"]
[White "Ghio, Maxime"]
[Black "Caruncho, Alfonso"]
[Result "1/2-1/2"]
[TimeControl "1 h 30 min (+30s/coup)"]
[WhiteElo "1641"]
[BlackElo "1600"]

1. d4 {[%clk 01:30:56]} {[%emt 00:00:03]} Nf6 {[%clk 01:30:51]} {[%emt
00:00:09]} 2. c4 {[%clk 01:31:18]} {[%emt 00:00:09]} d6 {[%clk 01:31:16]}
{[%emt 00:00:06]} 3. Nf3 {[%clk 01:31:15]} {[%emt 00:00:32]} g6 {[%clk
01:30:46]} {[%emt 00:01:00]} 4. Nc3 {[%clk 01:31:11]} {[%emt 00:00:34]} Nbd7
{[%clk 01:30:05]} {[%emt 00:01:11]} 5. e4 {[%emt 00:00:59]} e5 {[%clk
01:30:21]} 6. dxe5 {[%clk 01:29:50]} {[%emt 00:01:36]} dxe5 {[%clk 01:30:42]}
{[%emt 00:00:08]} 7. Bg5 {[%clk 01:26:17]} {[%emt 00:04:03]} Bg7 {[%clk
01:23:55]} {[%emt 00:07:18]} 8. Qd2 {[%clk 01:24:14]} {[%emt 00:02:33]} O-O
{[%clk 01:15:36]} {[%emt 00:08:49]} 9. Rd1 {[%clk 01:20:27]} {[%emt 00:04:16]}
Qe8 {[%clk 01:10:40]} {[%emt 00:05:26]} 10. Be2 {[%clk 01:08:52]} {[%emt
00:12:05]} c6 {[%clk 01:08:13]} {[%emt 00:02:58]} 11. Qd6 {[%clk 01:04:25]}
{[%emt 00:04:56]} h6 {[%clk 01:07:48]} {[%emt 00:00:56]} 12. Bh4 {[%clk
01:03:13]} {[%emt 00:01:41]} g5 {[%clk 01:05:46]} {[%emt 00:02:32]} 13. Nxg5
{[%clk 01:00:01]} {[%emt 00:03:43]} hxg5 {[%clk 01:06:11]} {[%emt 00:00:06]} 14.
Bxg5 {[%clk 00:59:55]} {[%emt 00:00:36]} Qe6 {[%emt 00:01:48]} 15. Qxe6 {[%clk
00:52:44]} {[%emt 00:07:39]} fxe6 {[%clk 01:04:59]} {[%emt 00:00:25]} 16. b4
{[%clk 00:52:05]} {[%emt 00:01:09]} Rf7 {[%clk 00:58:58]} {[%emt 00:06:30]} 17.
h4 {[%clk 00:44:54]} {[%emt 00:07:42]} Nh7 {[%clk 00:56:46]} {[%emt 00:02:41]}
18. Be3 {[%clk 00:44:33]} {[%emt 00:00:51]} Ndf8 {[%clk 00:52:47]} {[%emt
00:04:29]} 19. g4 {[%clk 00:40:00]} {[%emt 00:05:04]} Rd7 {[%clk 00:52:09]}
{[%emt 00:01:08]} 20. Rc1 {[%clk 00:33:50]} {[%emt 00:06:40]} Ng6 {[%clk
00:52:17]} {[%emt 00:00:22]} 21. c5 {[%clk 00:32:20]} {[%emt 00:02:00]} Nf4
{[%clk 00:50:58]} {[%emt 00:01:49]} 22. Bc4 {[%clk 00:27:14]} {[%emt 00:05:36]}
Nd3+ {[%clk 00:46:21]} {[%emt 00:05:08]} 23. Bxd3 {[%clk 00:27:28]} {[%emt
00:00:15]} Rxd3 {[%clk 00:46:24]} {[%emt 00:00:27]} 24. Ke2 {[%clk 00:27:42]}
{[%emt 00:00:17]} Rd7 {[%clk 00:46:15]} {[%emt 00:00:37]} 25. g5 {[%clk
00:26:21]} {[%emt 00:01:53]} Re7 {[%clk 00:46:17]} {[%emt 00:00:28]} 26. f3
{[%clk 00:18:56]} {[%emt 00:07:56]} Bd7 {[%clk 00:45:08]} {[%emt 00:01:38]} 27.
Nd1 {[%clk 00:18:57]} {[%emt 00:00:29]} Rf8 {[%clk 00:42:56]} {[%emt 00:02:42]}
28. Nf2 {[%clk 00:18:46]} {[%emt 00:00:41]} Be8 {[%clk 00:41:56]} {[%emt
00:01:30]} 29. Ng4 {[%clk 00:18:00]} {[%emt 00:01:17]} Bh5 {[%clk 00:40:25]}
{[%emt 00:02:00]} 30. Rcd1 {[%clk 00:16:00]} {[%emt 00:02:30]} 1/2-1/2